bitfinex-derivatives/quotes_BNBF0:USTF0_20250331
["timestamp","ask_amount","ask_price","bid_price","bid_amount"]
[1743431456180,0.89412518,601.66,599.97,0.33335]
[1743431456383,0.89412518,601.65,599.97,0.33335]
[1743431456580,0.89412518,601.64,599.97,0.33335]
[1743431456786,0.89412518,601.63,599.97,0.33335]
[1743431456986,3.04793024,601.64,599.97,0.33335]
[1743431457285,0.89512696,601.63,599.97,0.33335]
[1743431457482,2.06740782,601.62,599.97,0.33335]
[1743431457687,1.17228086,601.62,599.97,0.33335]
[1743431458286,1.17228086,601.61,599.97,0.33335]
[1743431458690,1.87880964,601.72,599.97,0.33335]
[1743431458888,0.89565707,601.71,599.97,0.33335]
[1743431459190,0.89565707,601.7,599.97,0.33335]
[1743431459383,0.98038488,601.96,599.97,0.33335]
[1743431459384,3.9492242,601.69,599.97,0.33335]
[1743431459590,0.89565707,601.68,599.97,0.33335]
[1743431459887,0.89565707,601.67,599.97,0.33335]
[1743431460088,0.89565707,601.66,599.97,0.33335]
[1743431460382,1.17475749,601.65,599.97,0.33335]
[1743431461090,1.17475749,601.64,599.97,0.33335]
[1743431461488,1.41972998,601.74,599.97,0.33335]
[1743431461688,3.75052361,601.73,599.97,0.33335]
[1743431461992,1.87954869,601.75,599.97,0.33335]
[1743431462192,3.05473983,601.72,599.97,0.33335]
[1743431462386,0.89637041,601.71,599.97,0.33335]
[1743431462587,3.05473983,601.72,599.97,0.33335]
[1743431462787,1.17519114,601.7,599.97,0.33335]
[1743431462984,0.89668013,601.69,599.97,0.33335]
[1743431463187,0.89670074,601.68,599.97,0.33335]
[1743431463391,1.17519114,601.7,599.97,0.33335]
[1743431463591,1.17519114,601.67,599.97,0.33335]
[1743431463783,0.8970914,601.66,599.97,0.33335]
[1743431463987,0.8970914,601.65,599.97,0.33335]
[1743431464189,1.17519114,601.66,599.97,0.33335]
[1743431464391,0.8974941,601.65,599.97,0.33335]
[1743431464589,1.17519114,601.64,599.97,0.33335]
[1743431464985,1.17519114,601.63,599.97,0.33335]
[1743431465191,1.17519114,601.63,600.16,2.50657303]
[1743431465492,1.17519114,601.63,600.18,0.33323336]
[1743431465688,3.35658579,601.78,600.18,0.33323336]
[1743431465885,4.25445815,601.77,600.18,0.33323336]
[1743431466086,4.25445815,601.76,600.18,0.33323336]
[1743431466291,1.88345626,601.79,600.18,0.33323336]
[1743431466292,3.75579753,601.75,600.29,2.50657303]
[1743431466591,3.75713421,601.74,600.31,0.3331612]
[1743431466788,6.81829996,601.73,600.31,0.3331612]
[1743431466992,2.32119532,601.72,600.31,0.3331612]
[1743431467191,0.89787236,601.71,600.31,0.3331612]
[1743431467392,3.06116575,601.73,600.31,0.3331612]
[1743431467593,1.17770949,601.7,600.31,0.3331612]
[1743431468389,1.17770949,601.69,600.31,0.3331612]
[1743431468993,5.63907437,601.92,600.31,0.3331612]
[1743431469190,6.5378115,601.91,600.31,0.3331612]
[1743431469392,8.42360538,601.9,600.31,0.3331612]
[1743431469594,6.0392401,601.89,600.31,0.3331612]
[1743431469893,3.76114381,601.88,600.31,0.3331612]
[1743431470095,3.76114381,601.87,600.31,0.3331612]
[1743431470290,3.76114381,601.86,600.31,0.3331612]
[1743431470490,6.0411023,601.85,600.31,2.83973423]
[1743431470694,6.04112018,601.84,600.31,2.83973423]
[1743431470890,6.53972847,601.83,600.31,2.83973423]
[1743431471194,3.76114381,601.82,600.31,2.83973423]
[1743431471394,3.76114381,601.81,600.31,2.83973423]
[1743431471597,3.76114381,601.8,600.31,0.3331612]
[1743431471794,3.76114381,601.79,600.31,0.3331612]
[1743431471993,3.76114381,601.78,600.31,0.3331612]
[1743431472190,3.76114381,601.77,600.31,0.3331612]
[1743431472392,3.76114381,601.76,600.31,0.3331612]
[1743431472589,3.96315218,601.75,600.31,0.3331612]
[1743431472793,0.89873713,601.74,600.31,0.3331612]
[1743431472995,0.89873713,601.73,600.47,2.50657303]
[1743431473195,0.89873713,601.72,600.49,0.33306133]
[1743431473395,3.06441505,601.73,600.49,0.33306133]
[1743431473595,0.90046234,601.72,600.49,0.33306133]
[1743431473793,0.90046486,601.71,600.51,2.50657303]
[1743431474097,0.90046234,601.7,600.53,0.33303914]
[1743431474297,1.17862117,601.69,600.53,0.33303914]
[1743431474695,3.50707377,601.68,600.53,0.33303914]
[1743431474900,2.3284526,601.67,600.53,2.83961217]
[1743431475102,1.17862117,601.68,600.53,2.83961217]
[1743431475103,0.9009222,601.66,600.53,2.83961217]
[1743431475302,1.17862117,601.65,600.53,2.83961217]
[1743431476102,1.17862117,601.64,600.53,2.83961217]
[1743431476302,0.90175175,601.63,600.53,0.33303914]
[1743431476502,0.90175175,601.62,600.53,0.33303914]
[1743431476704,0.90175175,601.61,600.53,0.33303914]
[1743431476903,2.08037292,601.6,600.53,0.33303914]
[1743431477098,0.90176851,601.59,600.53,0.33303914]
[1743431477297,1.17862117,601.6,600.53,0.33303914]
[1743431477498,1.17862117,601.58,600.53,0.33303914]
[1743431478405,5.65934334,601.8,600.53,0.33303914]
[1743431478607,6.56174525,601.79,600.53,0.33303914]
[1743431478806,6.06308792,601.78,600.53,0.33303914]
[1743431479104,6.06308792,601.77,600.53,0.33303914]
[1743431479304,9.13914541,601.76,600.53,0.33303914]
[1743431479506,6.06308792,601.75,600.53,0.33303914]
[1743431479707,6.06308792,601.74,600.53,0.33303914]
[1743431479907,3.77618421,601.73,600.53,0.33303914]
[1743431480100,2.33226739,601.72,600.53,0.33303914]
[1743431480303,0.90240191,601.71,600.53,0.33303914]
[1743431480507,0.90240191,601.7,600.53,0.33303914]
[1743431480707,1.18309903,601.71,600.53,0.33303914]
[1743431481309,1.18309903,601.7,600.53,0.33303914]
[1743431481906,1.18309903,601.7,600.68,2.50657303]
[1743431482108,5.16845936,601.89,600.7,0.33294489]
[1743431482308,6.07279646,601.88,600.7,0.33294489]
[1743431482509,6.07551349,601.87,600.7,0.33294489]
[1743431482709,6.07551349,601.86,600.7,0.33294489]
[1743431482905,6.07551349,601.85,600.7,0.33294489]
[1743431483105,6.07551349,601.84,600.7,0.33294489]
[1743431483413,6.57741765,601.83,600.7,0.33294489]
[1743431483612,3.78452715,601.82,600.7,0.33294489]
[1743431483809,2.3382796,601.81,600.7,0.33294489]
[1743431484007,2.3382796,601.8,600.7,0.33294489]
[1743431484208,3.52491855,601.79,600.7,0.33294489]
[1743431484412,2.33924628,601.78,600.7,0.33294489]
[1743431484612,0.9043371,601.77,600.7,0.33294489]
[1743431484908,2.09000937,601.76,600.7,0.33294489]
[1743431485114,0.9043371,601.75,600.7,0.33294489]
[1743431485313,0.90614307,601.74,600.7,0.33294489]
[1743431485508,1.18567227,601.74,600.7,0.33294489]
[1743431485706,0.90612814,601.73,600.7,0.33294489]
[1743431485911,1.18567227,601.73,600.7,0.33294489]
[1743431486315,2.09213246,601.72,600.7,0.33294489]
[1743431486614,3.79335107,601.71,600.7,0.33294489]
[1743431486816,3.79335482,601.7,600.7,0.33294489]
[1743431487015,2.34283992,601.69,600.7,0.33294489]
[1743431487215,2.33231104,601.68,600.7,0.33294489]
[1743431487415,2.33231104,601.67,600.7,0.33294489]
[1743431487617,2.33231104,601.66,600.7,0.33294489]
[1743431487817,0.90646019,601.65,600.7,0.33294489]
[1743431488014,0.90646019,601.64,600.7,0.33294489]
[1743431488214,0.90646019,601.63,600.7,0.33294489]
[1743431488415,0.90646019,601.62,600.7,0.33294489]
[1743431488612,3.08740223,601.63,600.7,0.33294489]
[1743431488613,0.90646019,601.61,600.7,0.33294489]
[1743431488812,3.08740223,601.63,600.7,0.33294489]
[1743431489017,0.90692282,601.62,600.7,0.33294489]
[1743431489217,1.18567227,601.6,600.7,0.33294489]
[1743431489921,1.18567227,601.59,600.7,0.33294489]
[1743431490316,2.33366389,601.58,600.7,0.33294489]
[1743431490621,2.33366389,601.57,600.7,0.33294489]
[1743431490823,2.33366389,601.56,600.7,0.33294489]
[1743431491025,2.33374132,601.55,600.7,0.33294489]
[1743431491319,2.33383913,601.54,600.7,0.33294489]
[1743431491522,0.90713673,601.53,600.7,0.33294489]
[1743431491718,0.90713673,601.52,600.7,0.33294489]
[1743431491919,0.90713673,601.51,600.7,0.33294489]
[1743431492220,1.18567227,601.5,600.7,0.33294489]
[1743431492819,1.65335261,601.78,600.7,0.33294489]
[1743431493016,6.56617371,601.77,600.7,0.33294489]
[1743431493322,9.65807885,601.76,600.7,0.33294489]
[1743431493623,6.56617371,601.75,600.7,0.33294489]
[1743431493818,11.31143146,601.74,600.7,0.33294489]
[1743431494019,6.56617371,601.73,600.7,0.33294489]
[1743431494221,6.56617371,601.72,600.7,0.33294489]
[1743431494423,6.56617371,601.71,600.7,0.33294489]
[1743431494621,9.65807885,601.7,600.7,0.33294489]
[1743431494817,6.56685532,601.69,600.7,0.33294489]
[1743431495016,7.25741472,601.68,600.7,0.33294489]
[1743431495221,6.06822044,601.67,600.7,0.33294489]
[1743431495517,3.09190514,601.68,600.7,0.33294489]
[1743431495715,0.99346887,601.93,600.7,0.33294489]
[1743431495716,1.18919428,601.66,600.7,0.33294489]
[1743431496327,1.18919428,601.65,600.7,0.33294489]
[1743431497118,2.78181714,601.83,600.7,0.33294489]
[1743431497324,6.06939592,601.82,600.7,0.33294489]
[1743431497520,6.06939592,601.81,600.7,0.33294489]
[1743431497719,3.78610495,601.8,600.7,0.33294489]
[1743431498023,6.87888251,601.79,600.7,0.33294489]
[1743431498224,3.78606072,601.78,600.7,0.33294489]
[1743431498525,3.78606072,601.77,600.7,0.33294489]
[1743431498725,2.33436489,601.76,600.7,0.33294489]
[1743431498924,2.33436489,601.75,600.7,0.33294489]
[1743431499124,2.33436489,601.74,600.7,0.33294489]
[1743431499323,0.90730989,601.73,600.7,0.33294489]
[1743431499526,0.90730989,601.72,600.7,0.33294489]
[1743431499725,0.90730989,601.71,600.7,0.33294489]
[1743431500025,3.09277756,601.74,600.7,0.33294489]
[1743431500026,1.18952983,601.74,600.7,0.33294489]
[1743431500226,1.18952983,601.7,600.7,0.33294489]
[1743431500825,1.18952983,601.69,600.7,0.33294489]
[1743431501425,1.18952983,601.68,600.7,0.33294489]
[1743431502227,1.18952983,601.67,600.7,0.33294489]
[1743431502929,0.28930086,601.99,600.7,0.33294489]
[1743431502930,1.18952983,601.66,600.7,0.33294489]
[1743431503323,3.73480246,601.9,600.7,0.33294489]
[1743431503526,3.78565476,601.89,600.7,0.33294489]
[1743431503731,2.3340249,601.88,600.7,0.33294489]
[1743431503928,3.78541524,601.87,600.7,0.33294489]
[1743431504130,2.3340249,601.86,600.7,0.33294489]
[1743431504328,0.90717985,601.85,600.7,0.33294489]
[1743431504527,0.90717985,601.84,600.7,0.33294489]
[1743431504727,0.90717985,601.83,600.7,0.33294489]
[1743431504931,1.18931198,601.84,600.7,0.33294489]
[1743431505430,1.45011719,602.04,600.7,0.33294489]
[1743431505729,3.78197867,602.03,600.7,0.33294489]
[1743431505931,3.78197867,602.02,600.7,0.33294489]
[1743431506130,2.33186148,602.01,600.7,0.33294489]
[1743431506425,2.0940137,602.0,600.7,0.33294489]
[1743431506630,0.90579712,601.99,600.7,0.33294489]
[1743431506830,1.18821658,602.0,600.7,0.33294489]
[1743431506831,0.90579712,601.98,600.7,0.33294489]
[1743431507031,1.18821658,601.98,600.7,0.33294489]
[1743431507531,1.18821658,601.97,600.7,0.33294489]
[1743431508426,1.18821658,601.96,600.7,0.33294489]
[1743431509030,1.65335261,602.22,600.7,0.33294489]
[1743431509031,1.18821658,601.95,600.7,0.33294489]
[1743431509527,0.90470406,601.94,600.7,0.33294489]
[1743431509727,2.32770883,601.93,600.7,0.33294489]
[1743431509936,2.32770883,601.92,600.7,0.33294489]
[1743431510233,2.32779056,601.91,600.7,0.33294489]
[1743431510429,2.32779056,601.9,600.7,0.33294489]
[1743431510628,2.32780509,601.89,600.7,0.33294489]
[1743431510831,0.90478579,601.88,600.7,0.33294489]
[1743431511031,0.90478579,601.87,600.7,0.33294489]
[1743431511227,0.90478579,601.86,600.7,0.33294489]
[1743431511531,0.90478461,601.85,600.7,0.33294489]
[1743431511727,0.90478461,601.84,600.7,0.33294489]
[1743431511929,1.1862012,601.86,600.7,0.33294489]
[1743431512134,0.9048025,601.85,600.7,0.33294489]
[1743431512433,0.90482985,601.84,600.7,0.33294489]
[1743431512629,1.1862012,601.85,600.7,0.33294489]
[1743431512830,0.90483651,601.84,600.7,0.33294489]
[1743431513032,1.1862012,601.83,600.7,0.33294489]
[1743431513234,0.90489019,601.82,600.7,0.33294489]
[1743431513429,1.1862012,601.82,600.7,0.33294489]
[1743431514228,2.09112363,601.81,600.7,0.33294489]
[1743431514429,2.32829901,601.8,600.7,0.33294489]
[1743431514630,2.09112363,601.79,600.7,0.33294489]
[1743431514836,0.90492243,601.78,600.7,0.33294489]
[1743431515037,0.90497694,601.77,600.7,0.33294489]
[1743431515233,1.1862012,601.79,600.7,0.33294489]
[1743431515437,2.09125494,601.78,600.7,0.33294489]
[1743431515635,0.90505374,601.77,600.7,0.33294489]
[1743431515832,1.1862012,601.78,600.7,0.33294489]
[1743431516239,1.1862012,601.77,600.7,0.33294489]
[1743431516843,1.1862012,601.76,600.7,0.33294489]
[1743431517445,1.1862012,601.75,600.7,0.33294489]
[1743431518041,1.44815939,601.89,600.7,0.33294489]
[1743431518341,6.86209162,601.88,600.7,0.33294489]
[1743431518544,3.77678536,601.87,600.7,0.33294489]
[1743431518841,6.05462758,601.86,600.7,0.33294489]
[1743431519042,3.77678536,601.85,600.7,0.33294489]
[1743431519240,3.77678536,601.84,600.7,0.33294489]
[1743431519444,6.05482316,601.83,600.7,0.33294489]
[1743431519639,6.55339842,601.82,600.7,0.33294489]
[1743431519843,6.55339842,601.81,600.7,0.33294489]
[1743431520044,6.55423733,601.8,600.7,0.33294489]
[1743431520344,6.55423733,601.79,600.7,0.33294489]
[1743431520538,6.55423733,601.78,600.7,0.33294489]
[1743431520743,6.55423733,601.77,600.7,0.33294489]
[1743431520939,6.55423733,601.76,600.7,0.33294489]
[1743431521139,2.35400511,601.75,600.7,0.33294489]
[1743431521344,6.05638962,601.74,600.7,0.33294489]
[1743431521539,9.14169588,601.73,600.7,0.33294489]
[1743431521740,6.05638962,601.72,600.7,0.33294489]
[1743431521942,6.05638962,601.71,600.7,0.33294489]
[1743431522143,3.77799915,601.7,600.7,0.33294489]
[1743431522441,0.2893225,601.93,600.7,0.33294489]
[1743431522442,5.41468688,601.69,600.7,0.33294489]
[1743431522645,2.32938062,601.68,600.7,0.33294489]
[1743431522840,2.32938062,601.67,600.7,0.33294489]
[1743431523046,2.32938062,601.66,600.7,0.33294489]
[1743431523247,0.90538658,601.65,600.7,0.33294489]
[1743431523448,0.90538658,601.64,600.7,0.33294489]
[1743431523647,0.90538658,601.63,600.7,0.33294489]
[1743431523942,0.90538658,601.62,600.7,0.33294489]
[1743431524147,0.90538658,601.61,600.7,0.33294489]
[1743431524347,0.90538658,601.6,600.7,0.33294489]
[1743431524556,0.90538658,601.59,600.7,0.33294489]
[1743431524751,2.09204283,601.58,600.7,0.33294489]
[1743431524948,0.90538658,601.57,600.7,0.33294489]
[1743431525151,0.90538658,601.56,600.7,0.33294489]
[1743431525353,0.90538658,601.55,600.7,0.33294489]
[1743431525654,1.18665625,601.55,600.7,0.33294489]
[1743431526254,1.18665625,601.54,600.7,0.33294489]
[1743431527153,1.18665625,601.53,600.7,0.33294489]
[1743431528054,1.423641,601.65,600.7,0.33294489]
[1743431528259,2.32878756,601.64,600.7,0.33294489]
[1743431528459,2.32878756,601.63,600.7,0.33294489]
[1743431528754,3.08553242,601.64,600.7,0.33294489]
[1743431528755,0.90507035,601.62,600.7,0.33294489]
[1743431528959,0.90507035,601.61,600.7,0.33294489]
[1743431529153,1.18664089,601.62,600.7,0.33294489]
[1743431529353,0.90499751,601.61,600.7,0.33294489]
[1743431529560,0.90499751,601.6,600.7,0.33294489]
[1743431529759,1.18664089,601.59,600.7,0.33294489]
[1743431530160,8.44960287,601.9,600.7,0.33294489]
[1743431530355,6.55124199,601.89,600.7,0.33294489]
[1743431530559,6.55118481,601.88,600.7,0.33294489]
[1743431530860,9.13684681,601.87,600.7,0.33294489]
[1743431531055,6.8599212,601.86,600.7,0.33294489]
[1743431531256,2.32788085,601.85,600.7,0.33294489]
[1743431531455,5.41223744,601.84,600.7,0.33294489]
[1743431531657,2.32788085,601.83,600.7,0.33294489]
[1743431531858,0.90480235,601.82,600.7,0.33294489]
[1743431532056,0.90480235,601.81,600.7,0.33294489]
[1743431532256,2.09098578,601.8,600.7,0.33294489]
[1743431532456,1.18618343,601.79,600.7,0.33294489]
[1743431532763,1.44755023,601.91,600.7,0.33294489]
[1743431532963,2.32765327,601.9,600.7,0.33294489]
[1743431533165,2.32765327,601.89,600.7,0.33294489]
[1743431533362,3.0838944,601.9,600.7,0.33294489]
[1743431533561,3.0838944,601.89,600.7,0.33294489]
[1743431533761,1.18611323,601.89,600.7,0.33294489]
[1743431533962,2.09065147,601.88,600.7,0.33294489]
[1743431534260,1.18611323,601.87,600.7,0.33294489]
[1743431534661,5.14551581,602.09,600.7,0.33294489]
[1743431534858,6.04986475,602.08,600.7,0.33294489]
[1743431535062,6.04986475,602.07,600.7,0.33294489]
[1743431535263,3.77374888,602.06,600.7,0.33294489]
[1743431535459,0.90434894,602.05,600.7,0.33294489]
[1743431535660,0.90434894,602.04,600.7,0.33294489]
[1743431535866,2.08999166,602.03,600.7,0.33294489]
[1743431536067,1.18564272,602.03,600.7,0.33294489]
[1743431536368,1.4218843,602.15,600.7,0.33294489]
[1743431536562,0.90365521,602.14,600.7,0.33294489]
[1743431536765,0.90365521,602.13,600.7,0.33294489]
[1743431536966,1.18470848,602.13,600.7,0.33294489]
[1743431537566,1.18470848,602.12,600.7,0.33294489]
[1743431538063,3.76851965,602.34,600.7,0.33294489]
[1743431538270,2.32358835,602.33,600.7,0.33294489]
[1743431538564,3.98059268,602.32,600.7,0.33294489]
[1743431538867,3.07751811,602.32,600.7,0.33294489]
[1743431539065,1.94200531,602.49,600.7,0.33294489]
[1743431539266,6.03704538,602.48,600.7,0.33294489]
[1743431539464,1.18311385,602.31,600.7,0.33294489]
[1743431539666,1.18311385,602.31,600.74,2.50657303]
[1743431539862,2.86340398,602.45,600.76,0.33291164]
[1743431540065,3.76512097,602.44,600.76,0.33291164]
[1743431540266,3.76512097,602.43,600.76,0.33291164]
[1743431540461,3.76293461,602.42,600.76,0.33291164]
[1743431540666,2.32122574,602.41,600.76,0.33291164]
[1743431540867,0.90171699,602.4,600.76,0.33291164]
[1743431541064,2.31912975,602.39,600.76,0.33291164]
[1743431541265,0.90171699,602.38,600.76,0.33291164]
[1743431541469,0.90171699,602.37,600.76,0.33291164]
[1743431541670,0.90171699,602.36,600.76,0.33291164]
[1743431541866,6.83080461,602.35,600.76,0.33291164]
[1743431542071,2.31836292,602.34,600.76,0.33291164]
[1743431542266,2.31836292,602.33,600.76,0.33291164]
[1743431542472,2.31836292,602.32,600.76,0.33291164]
[1743431542670,2.31836292,602.31,600.76,0.33291164]
[1743431542867,3.75843871,602.3,600.76,0.33291164]
[1743431543065,3.75843871,602.29,600.76,0.33291164]
[1743431543272,3.75843871,602.28,600.76,0.33291164]
[1743431543472,1.64696874,602.47,600.76,0.33291164]
[1743431543473,6.8298977,602.27,600.76,0.33291164]
[1743431543667,3.75843871,602.26,600.76,0.33291164]
[1743431543867,3.75843871,602.25,600.76,0.33291164]
[1743431544069,6.52238096,602.24,600.76,0.33291164]
[1743431544274,6.02412897,602.23,600.76,0.33291164]
[1743431544474,3.75843871,602.22,600.76,0.33291164]
[1743431544676,2.34225134,602.21,600.76,0.33291164]
[1743431544975,3.75805801,602.2,600.76,0.33291164]
[1743431545175,3.97155674,602.19,600.76,0.33291164]
[1743431545372,0.90009775,602.18,600.76,0.33291164]
[1743431545673,3.97155674,602.17,600.76,0.33291164]
[1743431545875,0.90009775,602.16,600.76,0.33291164]
[1743431546170,2.08142813,602.15,600.76,0.33291164]
[1743431546375,0.90009775,602.14,600.76,0.33291164]
[1743431546673,3.9690134,602.13,600.76,0.33291164]
[1743431546876,0.90009775,602.12,600.76,0.33291164]
[1743431547075,2.31558417,602.11,600.76,0.33291164]
[1743431547270,0.90009775,602.1,600.76,0.33291164]
[1743431547470,0.90009775,602.09,600.76,0.33291164]
[1743431547673,0.90009775,602.08,600.76,0.33291164]
[1743431547873,3.06891565,602.1,600.76,0.33291164]
[1743431547874,0.90009775,602.07,600.76,0.33291164]
[1743431548069,1.18133038,602.06,600.76,0.33291164]
[1743431548669,1.18133038,602.05,600.76,0.33291164]
[1743431548871,1.18133038,602.04,600.76,0.33291164]
[1743431549672,2.85511916,602.2,600.76,0.33291164]
[1743431549877,3.75494933,602.19,600.76,0.33291164]
[1743431550174,3.75494933,602.18,600.76,0.33291164]
[1743431550376,3.75514618,602.17,600.76,0.33291164]
[1743431550572,3.75514618,602.16,600.76,0.33291164]
[1743431550776,3.75524026,602.15,600.76,0.33291164]
[1743431550979,0.8999267,602.14,600.76,0.33291164]
[1743431551180,0.8999267,602.13,600.76,0.33291164]
[1743431551478,3.96729378,602.12,600.76,0.33291164]
[1743431551676,0.8999267,602.11,600.76,0.33291164]
[1743431551899,0.8999267,602.1,600.76,0.33291164]
[1743431552078,1.17982208,602.1,600.76,0.33291164]
[1743431552773,0.90010968,602.09,600.76,0.33291164]
[1743431552971,0.90010968,602.08,600.76,0.33291164]
[1743431553176,0.90010968,602.07,600.76,0.33291164]
[1743431553374,0.90017196,602.06,600.76,0.33291164]
[1743431553678,0.90017196,602.05,600.76,0.33291164]
[1743431553876,2.08006113,602.04,600.76,0.33291164]
[1743431554181,1.17982208,602.04,600.76,0.33291164]
[1743431554678,1.17982208,602.03,600.76,0.33291164]
[1743431555080,1.17982208,602.02,600.76,0.33291164]
[1743431555878,3.75691542,602.2,600.76,0.33291164]
[1743431556074,3.75691542,602.19,600.76,0.33291164]
[1743431556278,0.90033219,602.18,600.76,0.33291164]
[1743431556478,0.90033219,602.17,600.76,0.33291164]
[1743431556679,0.90033219,602.16,600.76,0.33291164]
[1743431556877,0.90033219,602.15,600.76,0.33291164]
[1743431557073,1.18023363,602.17,600.76,0.33291164]
[1743431557279,1.18023363,602.14,600.76,0.33291164]
[1743431558182,1.18023363,602.13,600.76,0.33291164]
[1743431558783,1.18023363,602.12,600.76,0.33291164]
[1743431559382,2.85604359,602.29,600.76,0.33291164]
[1743431559582,0.49822605,602.35,600.76,0.33291164]
[1743431559583,6.82422187,602.28,600.76,0.33291164]
[1743431559780,3.75610363,602.27,600.76,0.33291164]
[1743431559985,3.75610363,602.26,600.76,0.33291164]
[1743431560177,3.75610363,602.25,600.76,0.33291164]
[1743431560484,3.75610363,602.24,600.76,0.33291164]
[1743431560681,2.31589942,602.23,600.76,0.33291164]
[1743431560877,0.90006004,602.22,600.76,0.33291164]
[1743431561076,0.90006004,602.21,600.76,0.33291164]
[1743431561280,0.90006004,602.2,600.76,0.33291164]
[1743431561481,0.90006004,602.19,600.76,0.33291164]
[1743431561681,3.06811824,602.22,600.76,0.33291164]
[1743431561682,0.90006004,602.18,600.76,0.33291164]
[1743431561877,0.90006004,602.17,600.76,0.33291164]
[1743431562077,0.90006004,602.16,600.76,0.33291164]
[1743431562283,1.18001444,602.15,600.76,0.33291164]
[1743431562681,1.18001444,602.14,600.76,0.33291164]
[1743431563181,1.18001444,602.13,600.76,0.33291164]
[1743431563780,1.18001444,602.12,600.76,0.33291164]
[1743431564180,1.18001444,602.11,600.76,0.33291164]
[1743431564887,5.11999487,602.33,600.76,0.33291164]
[1743431565081,6.5181177,602.32,600.76,0.33291164]
[1743431565381,6.019903,602.31,600.76,0.33291164]
[1743431565585,3.75517424,602.3,600.76,0.33291164]
[1743431565781,1.4153605,602.29,600.76,0.33291164]
[1743431565985,3.75487996,602.28,600.76,0.33291164]
[1743431566182,0.89981518,602.27,600.76,0.33291164]
[1743431566382,0.89981518,602.26,600.76,0.33291164]
[1743431566586,0.89981518,602.25,600.76,0.33291164]
[1743431566790,0.89981518,602.24,600.76,0.33291164]
[1743431566988,0.89981518,602.23,600.76,0.33291164]
[1743431567185,1.17981543,602.24,600.76,0.33291164]
[1743431567380,1.17981543,602.22,600.76,0.33291164]
[1743431567983,1.17981543,602.21,600.76,0.33291164]
[1743431568389,1.17981543,602.2,600.76,0.33291164]
[1743431568689,1.17981543,602.2,600.78,2.50657303]
[1743431568890,2.85442933,602.32,600.8,0.33288948]
[1743431569090,0.89943107,602.31,600.8,0.33288948]
[1743431569285,0.8992558,602.3,600.8,0.33288948]
[1743431569590,1.17895566,602.3,600.8,0.33288948]
[1743431570089,1.17895566,602.29,600.8,0.33288948]
[1743431570291,1.17895566,602.29,600.9,2.50657303]
[1743431570486,1.17895566,602.28,600.92,0.332823]
[1743431571392,1.8856448,602.37,600.92,0.332823]
[1743431571591,0.89885397,602.36,600.92,0.332823]
[1743431571786,0.89885397,602.35,600.92,0.332823]
[1743431571986,2.077314,602.34,600.92,0.332823]
[1743431572292,0.89886742,602.33,600.92,0.332823]
[1743431572492,0.28907616,602.53,600.92,0.332823]
[1743431572493,2.077314,602.32,600.92,0.332823]
[1743431572692,0.89886742,602.31,600.92,0.332823]
[1743431572993,0.89886742,602.3,600.92,0.332823]
[1743431573192,1.17844658,602.3,600.92,0.332823]
[1743431573791,1.17844658,602.29,600.92,0.332823]
[1743431574093,1.17844658,602.28,600.92,0.332823]
[1743431574697,2.85152057,602.46,600.92,0.332823]
[1743431574894,6.81348066,602.45,600.92,0.332823]
[1743431575193,6.81348066,602.44,600.92,0.332823]
[1743431575488,3.75019136,602.43,600.92,0.332823]
[1743431575790,3.75019136,602.42,600.92,0.332823]
[1743431575994,0.89867079,602.41,600.92,0.332823]
[1743431576194,0.89867079,602.4,600.92,0.332823]
[1743431576493,0.89867079,602.39,600.92,0.332823]
[1743431576694,0.89867079,602.38,600.92,0.332823]
[1743431576989,0.89867079,602.37,600.92,0.332823]
[1743431577193,0.89867079,602.36,600.92,0.332823]
[1743431577394,3.0632893,602.38,600.92,0.332823]
[1743431577590,0.89854942,602.37,600.92,0.332823]
[1743431577790,0.89854942,602.36,600.92,0.332823]
[1743431577994,0.89854942,602.35,600.92,0.332823]
[1743431578194,1.17818819,602.34,600.92,0.332823]
[1743431578391,0.89853469,602.33,600.92,0.332823]
[1743431578591,2.07672288,602.32,600.92,0.332823]
[1743431578792,0.89854882,602.31,600.92,0.332823]
[1743431578993,0.89856402,602.3,600.92,0.332823]
[1743431579193,0.89863122,602.29,600.92,0.332823]
[1743431579396,0.89863122,602.28,600.92,0.332823]
[1743431579592,1.17818819,602.29,600.92,0.332823]
[1743431579799,0.89864995,602.28,600.92,0.332823]
[1743431580003,0.89866524,602.27,600.92,0.332823]
[1743431580198,0.89867505,602.26,600.92,0.332823]
[1743431580499,1.17818819,602.26,600.92,0.332823]
[1743431581102,1.17818819,602.25,600.92,0.332823]
[1743431581700,2.85140832,602.42,600.92,0.332823]
[1743431581904,3.75003338,602.41,600.92,0.332823]
[1743431582104,3.75003338,602.4,600.92,0.332823]
[1743431582306,3.75003338,602.39,600.92,0.332823]
[1743431582601,2.31217693,602.38,600.92,0.332823]
[1743431582903,3.06405798,602.38,600.92,0.332823]
[1743431583604,2.85270792,602.54,600.92,0.332823]
[1743431583801,2.3134022,602.53,600.92,0.332823]
[1743431584012,0.89916923,602.52,600.92,0.332823]
[1743431584209,0.89908984,602.51,601.04,2.50657303]
[1743431584411,3.06497962,602.53,601.04,2.50657303]
[1743431584906,1.93664134,602.7,601.04,2.50657303]
[1743431584907,1.17883831,602.5,601.04,2.50657303]